fUSD/lending_fUSD_20260614
["ID","MTS","AMOUNT","RATE_DAILY","PERIOD"]
[425030426,1781436696000,-500.0,0.00029315,8]
[425030423,1781436696000,-500.0,0.00029315,8]
[425030424,1781436696000,-500.0,0.00029315,8]
[425030429,1781436696000,-1811.24,0.00029315,8]
[425030391,1781436696000,-500.0,0.00029315,8]
[425030432,1781436696000,-1099.49,0.00029315,8]
[425030434,1781436696000,-500.0,0.00029315,8]
[425030431,1781436696000,-987.93,0.00029315,8]
[425030430,1781436696000,-1003.12,0.00029315,8]
[425030435,1781436696000,-1200.46,0.00029315,8]
[425030433,1781436696000,-531.55,0.00029315,8]
[425030436,1781436696000,-654.37,0.00029315,8]
[425030418,1781436696000,-2334.31,0.00029315,8]
[425030415,1781436696000,-602.41,0.00029315,8]
[425030428,1781436696000,-500.0,0.00029315,8]
[425030410,1781436696000,-518.31,0.00029315,8]
[425030417,1781436696000,-500.0,0.00029315,8]
[425030390,1781436696000,-500.0,0.00029315,8]
[425030394,1781436696000,-500.0,0.00029315,8]
[425030398,1781436696000,-500.0,0.00029315,8]
[425030396,1781436696000,-582.36,0.00029315,8]
[425030399,1781436696000,-1084.4,0.00029315,8]
[425030400,1781436696000,-2765.89,0.00029315,8]
[425030402,1781436696000,-506.23,0.00029315,8]
[425030413,1781436696000,-500.0,0.00029315,8]
[425030397,1781436696000,-1560.74,0.00029315,8]
[425030401,1781436696000,-538.92,0.00029315,8]
[425030414,1781436696000,-1370.23,0.00029315,8]
[425030404,1781436696000,-500.0,0.00029315,8]
[425030409,1781436696000,-874.3,0.00029315,8]
[425030407,1781436696000,-500.0,0.00029315,8]
[425030405,1781436696000,-869.79,0.00029315,8]
[425030406,1781436696000,-500.0,0.00029315,8]
[425030403,1781436696000,-678.56,0.00029315,8]
[425030412,1781436696000,-500.0,0.00029315,8]
[425030408,1781436696000,-1025.91,0.00029315,8]
[425030478,1781436697000,-2873.83,0.00029315,8]
[425030480,1781436697000,-500.0,0.00029315,8]
[425030476,1781436697000,-1100.07,0.00029315,8]
[425030470,1781436697000,-605.94,0.00029315,8]
[425030464,1781436697000,-500.0,0.00029315,8]
[425030474,1781436697000,-500.0,0.00029315,8]
[425030471,1781436697000,-500.0,0.00029315,8]
[425030472,1781436697000,-830.68,0.00029315,8]
[425030469,1781436697000,-500.0,0.00029315,8]
[425030467,1781436697000,-500.0,0.00029315,8]
[425030485,1781436697000,-1023.56,0.00029315,8]
[425030473,1781436697000,-500.0,0.00029315,8]
[425030482,1781436697000,-697.82,0.00029315,8]
[425030488,1781436697000,-793.99,0.00029315,8]
[425030477,1781436697000,-846.65,0.00029315,8]
[425030479,1781436697000,-500.0,0.00029315,8]
[425030483,1781436697000,-500.0,0.00029315,8]
[425030487,1781436697000,-500.0,0.00029315,8]
[425030486,1781436697000,-500.0,0.00029315,8]
[425030484,1781436697000,-1341.19,0.00029315,8]
[425030489,1781436697000,-500.0,0.00029315,8]
[425030499,1781436697000,-1123.95,0.00029315,8]
[425030491,1781436697000,-500.0,0.00029315,8]
[425030500,1781436697000,-1912.54,0.00029315,8]
[425030490,1781436697000,-500.0,0.00029315,8]
[425030496,1781436697000,-500.0,0.00029315,8]
[425030481,1781436697000,-500.0,0.00029315,8]
[425030468,1781436697000,-500.0,0.00029315,8]
[425030454,1781436697000,-500.0,0.00029315,8]
[425030465,1781436697000,-500.0,0.00029315,8]
[425030492,1781436697000,-500.0,0.00029315,8]
[425030438,1781436697000,-500.0,0.00029315,8]
[425030439,1781436697000,-522.95,0.00029315,8]
[425030437,1781436697000,-500.0,0.00029315,8]
[425030440,1781436697000,-912.82,0.00029315,8]
[425030442,1781436697000,-500.0,0.00029315,8]
[425030450,1781436697000,-912.53,0.00029315,8]
[425030441,1781436697000,-777.97,0.00029315,8]
[425030451,1781436697000,-598.75,0.00029315,8]
[425030443,1781436697000,-774.71,0.00029315,8]
[425030444,1781436697000,-1189.81,0.00029315,8]
[425030447,1781436697000,-552.94,0.00029315,8]
[425030448,1781436697000,-1588.13,0.00029315,8]
[425030449,1781436697000,-500.0,0.00029315,8]
[425030445,1781436697000,-634.38,0.00029315,8]
[425030446,1781436697000,-500.0,0.00029315,8]
[425030453,1781436697000,-570.94,0.00029315,8]
[425030463,1781436697000,-560.4,0.00029315,8]
[425030455,1781436697000,-636.28,0.00029315,8]
[425030456,1781436697000,-787.18,0.00029315,8]
[425030457,1781436697000,-500.0,0.00029315,8]
[425030458,1781436697000,-741.68,0.00029315,8]
[425030452,1781436697000,-500.0,0.00029315,8]
[425030460,1781436697000,-500.0,0.00029315,8]
[425030461,1781436697000,-500.0,0.00029315,8]
[425030462,1781436697000,-2216.26,0.00029315,8]
[425030459,1781436697000,-1919.91,0.00029315,8]
[425030466,1781436697000,-995.65,0.00029315,8]
[425030498,1781436697000,-500.0,0.00029315,8]
[425030475,1781436697000,-735.69,0.00029315,8]
[425030494,1781436697000,-781.07,0.00029315,8]
[425030530,1781436697000,-500.0,0.00029315,8]
[425030526,1781436697000,-500.0,0.00029315,8]
[425030535,1781436697000,-845.71,0.00029315,8]
[425030531,1781436697000,-500.0,0.00029315,8]
[425030534,1781436697000,-913.06,0.00029315,8]
[425030533,1781436697000,-500.0,0.00029315,8]
[425030532,1781436697000,-1080.75,0.00029315,8]
[425030529,1781436697000,-1059.93,0.00029315,8]
[425030528,1781436697000,-1289.21,0.00029315,8]
[425030545,1781436697000,-516.16,0.00029315,8]
[425030539,1781436697000,-1471.09,0.00029315,8]
[425030541,1781436697000,-500.0,0.00029315,8]
[425030543,1781436697000,-168.4219011,0.00029315,8]
[425030540,1781436697000,-681.29,0.00029315,8]
[425030546,1781436697000,-500.0,0.00029315,8]
[425030538,1781436697000,-500.0,0.00029315,8]
[425030542,1781436697000,-559.98,0.00029315,8]
[425030544,1781436697000,-500.0,0.00029315,8]
[425030548,1781436697000,-1073.91,0.00029315,8]
[425030549,1781436697000,-500.0,0.00029315,8]
[425030550,1781436697000,-1015.69,0.00029315,8]
[425030553,1781436697000,-500.0,0.00029315,8]
[425030552,1781436697000,-1615.21,0.00029315,8]
[425030555,1781436697000,-379.12248429,0.00029315,8]
[425030554,1781436697000,-614.1,0.00029315,8]
[425030551,1781436697000,-500.0,0.00029315,8]
[425030497,1781436697000,-500.0,0.00029315,8]
[425030537,1781436697000,-691.93,0.00029315,8]
[425030536,1781436697000,-645.65,0.00029315,8]
[425030547,1781436697000,-2587.9,0.00029315,8]
[425030556,1781436697000,-528.66,0.00029315,8]
[425030527,1781436697000,-589.15,0.00029315,8]
[425030493,1781436697000,-722.31,0.00029315,8]
[425030495,1781436697000,-500.0,0.00029315,8]
[425030501,1781436697000,-1784.22,0.00029315,8]
[425030505,1781436697000,-532.89,0.00029315,8]
[425030503,1781436697000,-500.0,0.00029315,8]
[425030504,1781436697000,-500.0,0.00029315,8]
[425030508,1781436697000,-583.27,0.00029315,8]
[425030509,1781436697000,-500.0,0.00029315,8]
[425030506,1781436697000,-557.26,0.00029315,8]
[425030512,1781436697000,-500.0,0.00029315,8]
[425030511,1781436697000,-500.0,0.00029315,8]
[425030507,1781436697000,-784.08,0.00029315,8]
[425030510,1781436697000,-545.5,0.00029315,8]
[425030502,1781436697000,-831.75,0.00029315,8]
[425030525,1781436697000,-500.0,0.00029315,8]
[425030514,1781436697000,-500.0,0.00029315,8]
[425030521,1781436697000,-500.0,0.00029315,8]
[425030519,1781436697000,-500.0,0.00029315,8]
[425030523,1781436697000,-500.0,0.00029315,8]
[425030517,1781436697000,-2115.09,0.00029315,8]
[425030515,1781436697000,-500.0,0.00029315,8]
[425030522,1781436697000,-1198.28,0.00029315,8]
[425030516,1781436697000,-500.0,0.00029315,8]
[425030518,1781436697000,-1675.91,0.00029315,8]
[425030524,1781436697000,-1673.77,0.00029315,8]
[425030520,1781436697000,-585.03,0.00029315,8]
[425030513,1781436697000,-1659.48,0.00029315,8]
[425030601,1781436698000,-500.0,0.00029315,8]
[425030593,1781436698000,-500.0,0.00029315,8]
[425030604,1781436698000,-541.98,0.00029315,8]
[425030596,1781436698000,-500.0,0.00029315,8]
[425030595,1781436698000,-500.0,0.00029315,8]
[425030594,1781436698000,-500.0,0.00029315,8]
[425030599,1781436698000,-1929.81,0.00029315,8]
[425030592,1781436698000,-500.0,0.00029315,8]
[425030591,1781436698000,-779.47,0.00029315,8]
[425030590,1781436698000,-702.92,0.00029315,8]
[425030589,1781436698000,-500.0,0.00029315,8]
[425030602,1781436698000,-1492.97,0.00029315,8]
[425030597,1781436698000,-500.0,0.00029315,8]
[425030600,1781436698000,-1889.86,0.00029315,8]
[425030616,1781436698000,-500.0,0.00029315,8]
[425030605,1781436698000,-500.0,0.00029315,8]
[425030612,1781436698000,-1603.48,0.00029315,8]
[425030608,1781436698000,-500.0,0.00029315,8]
[425030609,1781436698000,-1063.21,0.00029315,8]
[425030607,1781436698000,-500.0,0.00029315,8]
[425030606,1781436698000,-749.09,0.00029315,8]
[425030611,1781436698000,-500.0,0.00029315,8]
[425030610,1781436698000,-500.0,0.00029315,8]
[425030614,1781436698000,-500.0,0.00029315,8]
[425030625,1781436698000,-500.0,0.00029315,8]
[425030617,1781436698000,-500.0,0.00029315,8]
[425030615,1781436698000,-1879.34,0.00029315,8]
[425030598,1781436698000,-1516.11,0.00029315,8]
[425030603,1781436698000,-622.55,0.00029315,8]
[425030587,1781436698000,-500.0,0.00029315,8]
[425030558,1781436698000,-500.0,0.00029315,8]
[425030585,1781436698000,-500.0,0.00029315,8]
[425030613,1781436698000,-813.15,0.00029315,8]
[425030561,1781436698000,-500.0,0.00029315,8]
[425030557,1781436698000,-500.0,0.00029315,8]
[425030559,1781436698000,-600.36,0.00029315,8]
[425030563,1781436698000,-500.0,0.00029315,8]
[425030562,1781436698000,-583.88,0.00029315,8]
[425030571,1781436698000,-517.2,0.00029315,8]
[425030573,1781436698000,-1755.57,0.00029315,8]
[425030574,1781436698000,-558.03,0.00029315,8]
[425030564,1781436698000,-617.31,0.00029315,8]
[425030567,1781436698000,-2777.35,0.00029315,8]
[425030572,1781436698000,-561.61,0.00029315,8]
[425030565,1781436698000,-500.0,0.00029315,8]
[425030588,1781436698000,-542.97,0.00029315,8]
[425030566,1781436698000,-1039.97,0.00029315,8]
[425030569,1781436698000,-701.07,0.00029315,8]
[425030568,1781436698000,-620.51,0.00029315,8]
[425030575,1781436698000,-500.0,0.00029315,8]
[425030578,1781436698000,-2111.57,0.00029315,8]
[425030577,1781436698000,-500.0,0.00029315,8]
[425030579,1781436698000,-842.87,0.00029315,8]
[425030580,1781436698000,-500.0,0.00029315,8]
[425030581,1781436698000,-500.0,0.00029315,8]
[425030586,1781436698000,-1427.35,0.00029315,8]
[425030576,1781436698000,-500.0,0.00029315,8]
[425030584,1781436698000,-1422.21,0.00029315,8]
[425030582,1781436698000,-500.0,0.00029315,8]
[425030583,1781436698000,-1064.21,0.00029315,8]
[425030570,1781436698000,-909.15,0.00029315,8]
[425030624,1781436698000,-1057.13,0.00029315,8]
[425030560,1781436698000,-1087.19,0.00029315,8]
[425030620,1781436698000,-500.0,0.00029315,8]
[425030660,1781436698000,-364.92371328,0.00029315,8]
[425030662,1781436698000,-500.0,0.00029315,8]
[425030654,1781436698000,-1057.83,0.00029315,8]
[425030656,1781436698000,-1052.46,0.00029315,8]
[425030659,1781436698000,-765.46,0.00029315,8]
[425030653,1781436698000,-989.38,0.00029315,8]
[425030658,1781436698000,-500.0,0.00029315,8]
[425030652,1781436698000,-500.0,0.00029315,8]
[425030661,1781436698000,-500.0,0.00029315,8]
[425030657,1781436698000,-540.12,0.00029315,8]
[425030655,1781436698000,-632.32,0.00029315,8]
[425030666,1781436698000,-723.45,0.00029315,8]
[425030667,1781436698000,-1535.4,0.00029315,8]
[425030664,1781436698000,-1285.45,0.00029315,8]
[425030671,1781436698000,-919.65,0.00029315,8]
[425030668,1781436698000,-500.0,0.00029315,8]
[425030675,1781436698000,-1672.8,0.00029315,8]
[425030676,1781436698000,-500.0,0.00029315,8]
[425030672,1781436698000,-629.84,0.00029315,8]
[425030673,1781436698000,-1237.19,0.00029315,8]
[425030674,1781436698000,-500.0,0.00029315,8]
[425030669,1781436698000,-3262.01,0.00029315,8]
[425030677,1781436698000,-318.05269933,0.00029315,8]
[425030679,1781436698000,-1383.07,0.00029315,8]
[425030681,1781436698000,-1822.51,0.00029315,8]
[425030683,1781436698000,-500.0,0.00029315,8]
[425030680,1781436698000,-1111.21,0.00029315,8]
[425030678,1781436698000,-1545.51,0.00029315,8]
[425030670,1781436698000,-601.2,0.00029315,8]
[425030665,1781436698000,-777.97,0.00029315,8]
[425030682,1781436698000,-1480.16,0.00029315,8]
[425030645,1781436698000,-1112.24,0.00029315,8]
[425030663,1781436698000,-714.13,0.00029315,8]
[425030623,1781436698000,-1793.44,0.00029315,8]
[425030618,1781436698000,-500.0,0.00029315,8]
[425030621,1781436698000,-730.92,0.00029315,8]
[425030619,1781436698000,-500.0,0.00029315,8]
[425030626,1781436698000,-500.0,0.00029315,8]
[425030628,1781436698000,-500.0,0.00029315,8]
[425030629,1781436698000,-500.0,0.00029315,8]
[425030627,1781436698000,-1329.92,0.00029315,8]
[425030633,1781436698000,-500.0,0.00029315,8]
[425030636,1781436698000,-500.0,0.00029315,8]
[425030634,1781436698000,-678.81,0.00029315,8]
[425030631,1781436698000,-500.0,0.00029315,8]
[425030630,1781436698000,-500.0,0.00029315,8]
[425030635,1781436698000,-970.52,0.00029315,8]
[425030622,1781436698000,-2702.99,0.00029315,8]
[425030637,1781436698000,-500.0,0.00029315,8]
[425030632,1781436698000,-500.0,0.00029315,8]
[425030644,1781436698000,-599.38,0.00029315,8]
[425030651,1781436698000,-500.0,0.00029315,8]
[425030642,1781436698000,-500.0,0.00029315,8]
[425030643,1781436698000,-500.0,0.00029315,8]
[425030647,1781436698000,-574.78,0.00029315,8]
[425030646,1781436698000,-1267.91,0.00029315,8]
[425030648,1781436698000,-500.0,0.00029315,8]
[425030649,1781436698000,-1025.96,0.00029315,8]
[425030640,1781436698000,-500.0,0.00029315,8]
[425030638,1781436698000,-584.87,0.00029315,8]
[425030641,1781436698000,-510.01,0.00029315,8]
[425030639,1781436698000,-500.0,0.00029315,8]
[425030650,1781436698000,-500.0,0.00029315,8]
[425030720,1781436699000,-1563.27,0.00029315,8]
[425030721,1781436699000,-1560.69,0.00029315,8]
[425030727,1781436699000,-1419.27,0.00029315,8]
[425030726,1781436699000,-500.0,0.00029315,8]
[425030725,1781436699000,-753.7,0.00029315,8]
[425030722,1781436699000,-500.0,0.00029315,8]
[425030724,1781436699000,-500.0,0.00029315,8]
[425030723,1781436699000,-1714.43,0.00029315,8]
[425030717,1781436699000,-500.0,0.00029315,8]
[425030718,1781436699000,-500.0,0.00029315,8]
[425030719,1781436699000,-671.49,0.00029315,8]
[425030716,1781436699000,-2930.4,0.00029315,8]
[425030730,1781436699000,-549.94,0.00029315,8]
[425030739,1781436699000,-1007.33,0.00029315,8]
[425030738,1781436699000,-1509.36,0.00029315,8]
[425030731,1781436699000,-1275.33,0.00029315,8]
[425030737,1781436699000,-834.16,0.00029315,8]
[425030728,1781436699000,-774.03,0.00029315,8]
[425030715,1781436699000,-500.0,0.00029315,8]
[425030732,1781436699000,-1031.13,0.00029315,8]
[425030734,1781436699000,-500.0,0.00029315,8]
[425030733,1781436699000,-2415.9,0.00029315,8]
[425030736,1781436699000,-500.0,0.00029315,8]
[425030735,1781436699000,-831.68,0.00029315,8]
[425030741,1781436699000,-658.32,0.00029315,8]
[425030751,1781436699000,-1929.52,0.00029315,8]
[425030740,1781436699000,-520.85,0.00029315,8]
[425030729,1781436699000,-1322.89,0.00029315,8]
[425030708,1781436699000,-1258.82,0.00029315,8]
[425030714,1781436699000,-961.87,0.00029315,8]
[425030707,1781436699000,-213.62726128,0.00029315,8]
[425030745,1781436699000,-500.0,0.00029315,8]
[425030689,1781436699000,-2026.37,0.00029315,8]
[425030690,1781436699000,-2399.74,0.00029315,8]
[425030687,1781436699000,-500.0,0.00029315,8]
[425030684,1781436699000,-1731.92,0.00029315,8]
[425030688,1781436699000,-745.76,0.00029315,8]
[425030686,1781436699000,-1870.29,0.00029315,8]
[425030685,1781436699000,-500.0,0.00029315,8]
[425030697,1781436699000,-500.0,0.00029315,8]
[425030702,1781436699000,-500.0,0.00029315,8]
[425030693,1781436699000,-960.18,0.00029315,8]
[425030694,1781436699000,-855.82,0.00029315,8]
[425030692,1781436699000,-500.0,0.00029315,8]
[425030691,1781436699000,-500.0,0.00029315,8]
[425030695,1781436699000,-500.0,0.00029315,8]
[425030696,1781436699000,-500.0,0.00029315,8]
[425030699,1781436699000,-500.0,0.00029315,8]
[425030701,1781436699000,-500.0,0.00029315,8]
[425030698,1781436699000,-878.41,0.00029315,8]
[425030705,1781436699000,-804.14,0.00029315,8]
[425030712,1781436699000,-533.74,0.00029315,8]
[425030704,1781436699000,-153.87550968,0.00029315,8]
[425030713,1781436699000,-813.1,0.00029315,8]
[425030703,1781436699000,-1033.06,0.00029315,8]
[425030706,1781436699000,-500.0,0.00029315,8]
[425030710,1781436699000,-500.0,0.00029315,8]
[425030711,1781436699000,-500.0,0.00029315,8]
[425030709,1781436699000,-579.81,0.00029315,8]
[425030700,1781436699000,-589.98,0.00029315,8]
[425030746,1781436699000,-649.0,0.00029315,8]
[425030743,1781436699000,-500.0,0.00029315,8]
[425030782,1781436699000,-773.17,0.00029315,8]
[425030779,1781436699000,-626.28,0.00029315,8]
[425030780,1781436699000,-500.0,0.00029315,8]
[425030781,1781436699000,-2163.19,0.00029315,8]
[425030784,1781436699000,-599.34,0.00029315,8]
[425030785,1781436699000,-500.0,0.00029315,8]
[425030788,1781436699000,-2610.35,0.00029315,8]
[425030778,1781436699000,-500.0,0.00029315,8]
[425030783,1781436699000,-500.0,0.00029315,8]
[425030787,1781436699000,-611.27,0.00029315,8]
[425030786,1781436699000,-1329.08,0.00029315,8]
[425030790,1781436699000,-500.0,0.00029315,8]
[425030798,1781436699000,-575.74,0.00029315,8]
[425030791,1781436699000,-500.0,0.00029315,8]
[425030799,1781436699000,-562.99,0.00029315,8]
[425030796,1781436699000,-500.0,0.00029315,8]
[425030793,1781436699000,-1774.5,0.00029315,8]
[425030789,1781436699000,-1061.11,0.00029315,8]
[425030797,1781436699000,-500.0,0.00029315,8]
[425030794,1781436699000,-500.0,0.00029315,8]
[425030792,1781436699000,-669.87,0.00029315,8]
[425030795,1781436699000,-996.43,0.00029315,8]
[425030801,1781436699000,-500.0,0.00029315,8]
[425030803,1781436699000,-500.0,0.00029315,8]
[425030804,1781436699000,-1460.01,0.00029315,8]
[425030802,1781436699000,-1566.12,0.00029315,8]
[425030742,1781436699000,-659.7,0.00029315,8]
[425030777,1781436699000,-500.0,0.00029315,8]
[425030770,1781436699000,-500.0,0.00029315,8]
[425030800,1781436699000,-1237.94,0.00029315,8]
[425030775,1781436699000,-995.14,0.00029315,8]
[425030771,1781436699000,-500.0,0.00029315,8]
[425030747,1781436699000,-2679.21,0.00029315,8]
[425030748,1781436699000,-723.52,0.00029315,8]
[425030749,1781436699000,-1428.44,0.00029315,8]
[425030750,1781436699000,-777.82,0.00029315,8]
[425030763,1781436699000,-500.0,0.00029315,8]
[425030753,1781436699000,-500.0,0.00029315,8]
[425030764,1781436699000,-1159.37,0.00029315,8]
[425030752,1781436699000,-500.0,0.00029315,8]
[425030756,1781436699000,-500.0,0.00029315,8]
[425030754,1781436699000,-680.58,0.00029315,8]
[425030755,1781436699000,-500.0,0.00029315,8]
[425030757,1781436699000,-788.07,0.00029315,8]
[425030760,1781436699000,-500.0,0.00029315,8]
[425030744,1781436699000,-2035.16,0.00029315,8]
[425030768,1781436699000,-500.0,0.00029315,8]
[425030759,1781436699000,-500.0,0.00029315,8]
[425030774,1781436699000,-500.0,0.00029315,8]
[425030776,1781436699000,-800.3,0.00029315,8]
[425030773,1781436699000,-500.0,0.00029315,8]
[425030772,1781436699000,-3445.43,0.00029315,8]
[425030769,1781436699000,-3181.72,0.00029315,8]
[425030765,1781436699000,-824.8,0.00029315,8]
[425030766,1781436699000,-500.0,0.00029315,8]
[425030758,1781436699000,-500.0,0.00029315,8]
[425030761,1781436699000,-581.98,0.00029315,8]
[425030762,1781436699000,-500.0,0.00029315,8]
[425030767,1781436699000,-500.0,0.00029315,8]
[425030843,1781436700000,-500.0,0.00029315,8]
[425030848,1781436700000,-1067.55,0.00029315,8]
[425030840,1781436700000,-596.92,0.00029315,8]
[425030847,1781436700000,-710.8,0.00029315,8]
[425030845,1781436700000,-500.0,0.00029315,8]
[425030833,1781436700000,-2119.45,0.00029315,8]
[425030841,1781436700000,-500.0,0.00029315,8]
[425030838,1781436700000,-2372.27,0.00029315,8]
[425030849,1781436700000,-500.0,0.00029315,8]
[425030839,1781436700000,-3430.6,0.00029315,8]
[425030846,1781436700000,-1470.97,0.00029315,8]
[425030832,1781436700000,-645.33,0.00029315,8]
[425030842,1781436700000,-840.44,0.00029315,8]
[425030844,1781436700000,-508.09,0.00029315,8]
[425030856,1781436700000,-724.35,0.00029315,8]
[425030854,1781436700000,-1188.61,0.00029315,8]
[425030861,1781436700000,-500.0,0.00029315,8]
[425030850,1781436700000,-500.0,0.00029315,8]
[425030853,1781436700000,-500.0,0.00029315,8]
[425030852,1781436700000,-1023.92,0.00029315,8]
[425030860,1781436700000,-500.0,0.00029315,8]
[425030855,1781436700000,-500.0,0.00029315,8]
[425030862,1781436700000,-500.0,0.00029315,8]
[425030859,1781436700000,-528.07,0.00029315,8]
[425030857,1781436700000,-568.13,0.00029315,8]
[425030858,1781436700000,-1423.51,0.00029315,8]
[425030864,1781436700000,-541.64,0.00029315,8]
[425030863,1781436700000,-1591.01,0.00029315,8]
[425030851,1781436700000,-566.63,0.00029315,8]
[425030835,1781436700000,-500.0,0.00029315,8]
[425030809,1781436700000,-1610.59,0.00029315,8]
[425030829,1781436700000,-500.0,0.00029315,8]
[425030875,1781436700000,-851.46,0.00029315,8]
[425030807,1781436700000,-500.0,0.00029315,8]
[425030805,1781436700000,-797.81,0.00029315,8]
[425030810,1781436700000,-561.60751928,0.00029315,8]
[425030811,1781436700000,-500.0,0.00029315,8]
[425030808,1781436700000,-500.0,0.00029315,8]
[425030812,1781436700000,-1356.73,0.00029315,8]
[425030806,1781436700000,-752.7,0.00029315,8]
[425030814,1781436700000,-1378.62,0.00029315,8]
[425030824,1781436700000,-502.16,0.00029315,8]
[425030816,1781436700000,-620.19,0.00029315,8]
[425030817,1781436700000,-1411.59,0.00029315,8]
[425030815,1781436700000,-1252.66,0.00029315,8]
[425030834,1781436700000,-500.0,0.00029315,8]
[425030813,1781436700000,-524.19,0.00029315,8]
[425030823,1781436700000,-1312.02,0.00029315,8]
[425030819,1781436700000,-535.34,0.00029315,8]
[425030818,1781436700000,-500.0,0.00029315,8]
[425030820,1781436700000,-500.0,0.00029315,8]
[425030822,1781436700000,-500.0,0.00029315,8]
[425030825,1781436700000,-592.79,0.00029315,8]
[425030828,1781436700000,-500.0,0.00029315,8]
[425030827,1781436700000,-500.0,0.00029315,8]
[425030837,1781436700000,-545.16,0.00029315,8]
[425030826,1781436700000,-1881.99,0.00029315,8]
[425030831,1781436700000,-500.0,0.00029315,8]
[425030836,1781436700000,-922.35,0.00029315,8]
[425030830,1781436700000,-500.0,0.00029315,8]
[425030821,1781436700000,-816.74,0.00029315,8]
[425030874,1781436700000,-1295.99,0.00029315,8]
[425030928,1781436700000,-500.0,0.00029315,8]
[425030867,1781436700000,-500.0,0.00029315,8]
[425030898,1781436700000,-500.0,0.00029315,8]
[425030905,1781436700000,-448.5,0.00029315,8]
[425030903,1781436700000,-1902.0,0.00029315,8]
[425030906,1781436700000,-512.00342819,0.00029315,8]
[425030907,1781436700000,-1662.26,0.00029315,8]
[425030914,1781436700000,-2657.03,0.00029315,8]
[425030908,1781436700000,-500.0,0.00029315,8]
[425030904,1781436700000,-1599.02,0.00029315,8]
[425030909,1781436700000,-500.0,0.00029315,8]
[425030915,1781436700000,-6854.6,0.00029315,8]
[425030911,1781436700000,-9318.37,0.00029315,8]
[425030910,1781436700000,-1387.47,0.00029315,8]
[425030912,1781436700000,-500.0,0.00029315,8]
[425030895,1781436700000,-500.0,0.00029315,8]
[425030917,1781436700000,-882.04,0.00029315,8]
[425030927,1781436700000,-233.97720956,0.00029315,8]
[425030918,1781436700000,-500.0,0.00029315,8]
[425030920,1781436700000,-500.0,0.00029315,8]
[425030921,1781436700000,-620.22,0.00029315,8]
[425030922,1781436700000,-633.46,0.00029315,8]
[425030926,1781436700000,-500.0,0.00029315,8]
[425030925,1781436700000,-500.0,0.00029315,8]
[425030919,1781436700000,-626.27,0.00029315,8]
[425030923,1781436700000,-509.28,0.00029315,8]
[425030924,1781436700000,-1056.98,0.00029315,8]
[425030929,1781436700000,-1091.01,0.00029315,8]
[425030930,1781436700000,-500.0,0.00029315,8]
[425030866,1781436700000,-500.0,0.00029315,8]
[425030916,1781436700000,-500.0,0.00029315,8]
[425030899,1781436700000,-500.0,0.00029315,8]
[425030913,1781436700000,-500.0,0.00029315,8]
[425030894,1781436700000,-660.0,0.00029315,8]